fUST/lending_fUST_20260114
["ID","MTS","AMOUNT","RATE_DAILY","PERIOD"]
[401867020,1768390872090,-300.0,9.803e-05,2]
[401867021,1768390872109,-300.0,9.803e-05,2]
[401867022,1768390872131,-100.0,9.803e-05,2]
[401867023,1768390874687,-1000.0,9.803e-05,2]
[401867024,1768390875030,-100.0,9.803e-05,2]
[401867025,1768390875057,-300.0,9.803e-05,2]
[401867026,1768390875099,-557.0,9.803e-05,2]
[401867027,1768390875140,-43.0,9.803e-05,2]
[401867028,1768390875369,-457.0,9.803e-05,2]
[401867029,1768390875401,-500.0,9.803e-05,2]
[401867030,1768390875433,-43.0,9.803e-05,2]
[401867031,1768390875684,-457.0,9.803e-05,2]
[401867032,1768390875715,-500.0,9.803e-05,2]
[401867033,1768390875742,-43.0,9.803e-05,2]
[401867034,1768390876064,-381.53543949,9.803e-05,2]
[401867035,1768390876091,-500.0,9.803e-05,2]
[401867036,1768390876123,-118.46456051,9.803e-05,2]
[401867037,1768390876607,-381.53543949,9.803e-05,2]
[401867038,1768390876634,-500.0,9.803e-05,2]
[401867039,1768390876655,-118.46456051,9.803e-05,2]
[401867040,1768390876922,-381.53543949,9.803e-05,2]
[401867041,1768390877312,-500.0,9.803e-05,2]
[401867042,1768390877334,-118.46456051,9.803e-05,2]
[401867043,1768390877414,-381.53543949,9.803e-05,2]
[401867044,1768390877437,-500.0,9.803e-05,2]
[401867045,1768390877460,-118.46456051,9.803e-05,2]
[401867046,1768390877644,-381.53543949,9.803e-05,2]
[401867047,1768390877667,-500.0,9.803e-05,2]
[401867048,1768390877691,-118.46456051,9.803e-05,2]
[401867049,1768390878006,-381.53543949,9.803e-05,2]
[401867050,1768390878030,-500.0,9.803e-05,2]
[401867051,1768390878052,-118.46456051,9.803e-05,2]
[401867052,1768390878396,-381.53543949,9.803e-05,2]
[401867053,1768390878419,-500.0,9.803e-05,2]
[401867054,1768390878441,-118.46456051,9.803e-05,2]
[401867055,1768390878710,-381.53543949,9.803e-05,2]
[401867056,1768390878733,-500.0,9.803e-05,2]
[401867057,1768390878756,-118.46456051,9.803e-05,2]
[401867058,1768390879080,-381.53543949,9.803e-05,2]
[401867059,1768390879102,-500.0,9.803e-05,2]
[401867060,1768390879124,-118.46456051,9.803e-05,2]
[401867061,1768390879568,-381.53543949,9.803e-05,2]
[401867062,1768390879591,-500.0,9.803e-05,2]
[401867063,1768390879612,-118.46456051,9.803e-05,2]
[401867064,1768390879872,-381.53543949,9.803e-05,2]
[401867065,1768390879894,-500.0,9.803e-05,2]
[401867066,1768390879915,-118.46456051,9.803e-05,2]
[401867067,1768390880204,-381.53543949,9.803e-05,2]
[401867068,1768390880228,-500.0,9.803e-05,2]
[401867069,1768390880252,-118.46456051,9.803e-05,2]
[401867070,1768390880569,-381.53543949,9.803e-05,2]
[401867071,1768390880591,-500.0,9.803e-05,2]
[401867072,1768390880613,-118.46456051,9.803e-05,2]
[401867073,1768390881024,-381.53543949,9.803e-05,2]
[401867074,1768390881047,-500.0,9.803e-05,2]
[401867075,1768390881069,-118.46456051,9.803e-05,2]
[401867076,1768390881272,-381.53543949,9.803e-05,2]
[401867077,1768390881297,-500.0,9.803e-05,2]
[401867078,1768390881322,-118.46456051,9.803e-05,2]
[401867079,1768390881625,-381.53543949,9.803e-05,2]
[401867080,1768390881653,-500.0,9.803e-05,2]
[401867081,1768390881678,-118.46456051,9.803e-05,2]
[401867082,1768390881953,-381.53543949,9.803e-05,2]
[401867083,1768390881976,-500.0,9.803e-05,2]
[401867084,1768390882001,-118.46456051,9.803e-05,2]
[401867085,1768390882340,-381.53543949,9.803e-05,2]
[401867086,1768390882364,-500.0,9.803e-05,2]
[401867087,1768390882390,-118.46456051,9.803e-05,2]
[401867088,1768390882666,-381.53543949,9.803e-05,2]
[401867089,1768390882690,-500.0,9.803e-05,2]
[401867090,1768390882714,-118.46456051,9.803e-05,2]
[401867091,1768390883072,-381.53543949,9.803e-05,2]
[401867092,1768390883095,-500.0,9.803e-05,2]
[401867093,1768390883119,-118.46456051,9.803e-05,2]
[401867094,1768390883406,-381.53543949,9.803e-05,2]
[401867095,1768390883429,-500.0,9.803e-05,2]
[401867096,1768390883451,-118.46456051,9.803e-05,2]
[401867097,1768390884144,-381.53543949,9.803e-05,2]
[401867098,1768390884166,-500.0,9.803e-05,2]
[401867099,1768390884189,-118.46456051,9.803e-05,2]
[401867100,1768390884486,-381.53543949,9.803e-05,2]
[401867101,1768390884512,-500.0,9.803e-05,2]
[401867102,1768390884536,-118.46456051,9.803e-05,2]
[401867103,1768390884618,-381.53543949,9.803e-05,2]
[401867104,1768390884642,-500.0,9.803e-05,2]
[401867105,1768390884666,-118.46456051,9.803e-05,2]
[401867106,1768390884841,-381.53543949,9.803e-05,2]
[401867107,1768390884864,-500.0,9.803e-05,2]
[401867108,1768390884886,-118.46456051,9.803e-05,2]
[401867109,1768390885193,-381.53543949,9.803e-05,2]
[401867110,1768390885216,-536.9360609,9.803e-05,2]
[401867111,1768390885240,-81.52849961,9.803e-05,2]
[401867112,1768390885616,-418.47150039,9.803e-05,2]
[401867113,1768390885638,-500.0,9.803e-05,2]
[401867114,1768390885662,-81.52849961,9.803e-05,2]
[401867115,1768390885901,-418.47150039,9.803e-05,2]
[401867116,1768390885923,-500.0,9.803e-05,2]
[401867117,1768390885946,-81.52849961,9.803e-05,2]
[401867118,1768390886222,-418.47150039,9.803e-05,2]
[401867119,1768390886246,-500.0,9.803e-05,2]
[401867120,1768390886268,-81.52849961,9.803e-05,2]
[401867121,1768390886632,-418.47150039,9.803e-05,2]
[401867122,1768390886658,-490.10192816,9.803e-05,2]
[401867123,1768390886682,-91.42657145,9.803e-05,2]
[401867124,1768390886955,-408.57342855,9.803e-05,2]
[401867125,1768390886981,-500.0,9.803e-05,2]
[401867126,1768390887006,-91.42657145,9.803e-05,2]
[401867127,1768390896747,-408.57342855,9.803e-05,2]
[401867128,1768390896771,-500.0,9.803e-05,2]
[401867129,1768390896794,-91.42657145,9.803e-05,2]
[401867130,1768390898119,-408.57342855,9.803e-05,2]
[401867131,1768390898145,-500.0,9.803e-05,2]
[401867132,1768390898190,-91.42657145,9.803e-05,2]
[401867133,1768390898464,-408.57342855,9.803e-05,2]
[401867134,1768390898493,-500.0,9.803e-05,2]
[401867135,1768390898517,-91.42657145,9.803e-05,2]
[401867136,1768390898831,-408.57342855,9.803e-05,2]
[401867137,1768390898855,-500.0,9.803e-05,2]
[401867138,1768390898879,-91.42657145,9.803e-05,2]
[401867139,1768390899158,-408.57342855,9.803e-05,2]
[401867140,1768390899182,-500.0,9.803e-05,2]
[401867141,1768390899205,-91.42657145,9.803e-05,2]
[401867142,1768390899503,-408.57342855,9.803e-05,2]
[401867143,1768390899526,-591.42657145,9.804e-05,2]
[401867144,1768390899812,-1000.0,9.804e-05,2]
[401867145,1768390900156,-1000.0,9.804e-05,2]
[401867146,1768390900505,-1000.0,9.804e-05,2]
[401867147,1768390900899,-1000.0,9.804e-05,2]
[401867148,1768390901207,-1000.0,9.804e-05,2]
[401867149,1768390901552,-1000.0,9.804e-05,2]
[401867150,1768390901949,-1000.0,9.804e-05,2]
[401867151,1768390902260,-1000.0,9.804e-05,2]
[401867152,1768390902685,-1000.0,9.804e-05,2]
[401867153,1768390903021,-1000.0,9.804e-05,2]
[401867154,1768390903358,-1000.0,9.804e-05,2]
[401867155,1768390903537,196.495,9.611e-05,2]
[401867156,1768390903700,-1000.0,9.804e-05,2]
[401867157,1768390904063,-1000.0,9.804e-05,2]
[401867158,1768390904421,-1000.0,9.804e-05,2]
[401867159,1768390905346,-1000.0,9.804e-05,2]
[401867160,1768390905387,-1000.0,9.804e-05,2]
[401867161,1768390905558,-1000.0,9.804e-05,2]
[401867162,1768390905867,-1000.0,9.804e-05,2]
[401867163,1768390906274,-1000.0,9.804e-05,2]
[401867164,1768390906605,-1000.0,9.804e-05,2]
[401867165,1768390906941,-1000.0,9.804e-05,2]
[401867166,1768390907336,-1000.0,9.804e-05,2]
[401867167,1768390907690,-1000.0,9.804e-05,2]
[401867168,1768390908094,-1000.0,9.804e-05,2]
[401867169,1768390908472,-1000.0,9.804e-05,2]
[401867170,1768390908827,-1000.0,9.804e-05,2]
[401867171,1768390909201,-1000.0,9.804e-05,2]
[401867172,1768390909600,-1000.0,9.804e-05,2]
[401867173,1768390910050,-1000.0,9.804e-05,2]
[401867174,1768390910359,-1000.0,9.804e-05,2]
[401867175,1768390910755,-1000.0,9.804e-05,2]
[401867176,1768390911111,-1000.0,9.804e-05,2]
[401867177,1768390911522,-1000.0,9.804e-05,2]
[401867178,1768390911860,-1000.0,9.804e-05,2]
[401867179,1768390912273,-1000.0,9.804e-05,2]
[401867180,1768390915830,-1000.0,9.804e-05,2]
[401867181,1768390915908,-1000.0,9.804e-05,2]
[401867182,1768390916324,-1000.0,9.804e-05,2]
[401867183,1768390918795,-1000.0,9.804e-05,2]
[401867184,1768390919187,-1000.0,9.804e-05,2]
[401867185,1768390919725,-1000.0,9.804e-05,2]
[401867186,1768390920098,-1000.0,9.804e-05,2]
[401867187,1768390920445,-1000.0,9.804e-05,2]
[401867188,1768390920813,-1000.0,9.804e-05,2]
[401867189,1768390921198,-1000.0,9.804e-05,2]
[401867190,1768390922637,-1000.0,9.804e-05,2]
[401867191,1768390923063,-1000.0,9.804e-05,2]
[401867192,1768390923672,-1000.0,9.804e-05,2]
[401867193,1768390991423,-1000.0,9.804e-05,2]
[401867194,1768390992674,-408.57342855,9.804e-05,2]
[401867195,1768390992695,-591.42657145,9.804e-05,2]
[401867196,1768390994064,-71.9697661,9.804e-05,2]
[401867197,1768390994086,-431.84557916,9.806e-05,2]
[401867198,1768390994106,-300.0,9.806e-05,2]
[401867199,1768390994128,-196.18465474,9.806e-05,2]
[401867200,1768390995345,-103.81534526,9.806e-05,2]
[401867201,1768390995370,-896.18465474,9.807e-05,2]
[401867202,1768390996772,-1000.0,9.807e-05,2]
[401867203,1768390998333,-1000.0,9.807e-05,2]
[401867204,1768390999887,-1000.0,9.807e-05,2]
[401867205,1768391160989,306.45,0.000254,120]
[401867210,1768391290400,180.0,9.806e-05,120]
[401867211,1768391292671,163.64456277,9.806e-05,120]
[401867212,1768391295215,171.82228138,0.00010787,120]
[401867213,1768391305313,8019.2045578,8.806e-05,2]
[401867216,1768391402600,165.22,3e-05,2]
[401867217,1768391402965,165.22,3.3e-05,2]
[401867218,1768391403298,165.22,3.5e-05,2]
[401867219,1768391403611,165.22,3.8e-05,2]
[401867220,1768391404077,165.22,4e-05,2]
[401867221,1768391404442,165.22,4.3e-05,2]
[401867222,1768391404773,165.22,4.5e-05,2]
[401867223,1768391405136,165.22,4.8e-05,2]
[401867224,1768391405482,165.22,5e-05,2]
[401867225,1768391431714,585.08,0.000254,120]
[401867297,1768391440373,-302.29190541,9.706e-05,2]
[401867298,1768391440384,-210.32609459,9.706e-05,2]
[401867300,1768391440395,-289.67390541,9.706e-05,2]
[401867301,1768391440405,-500.0,9.706e-05,2]
[401867303,1768391440414,-500.0,9.706e-05,2]
[401867304,1768391440423,-500.0,9.706e-05,2]
[401867305,1768391440433,-500.0,9.706e-05,2]
[401867306,1768391440442,-500.0,9.706e-05,2]
[401867308,1768391440452,-453.69360609,9.706e-05,2]
[401867310,1768391440462,-349.01019282,9.706e-05,2]
[401867312,1768391440472,-300.0,9.706e-05,2]
[401867313,1768391440482,-300.0,9.706e-05,2]
[401867316,1768391440493,-1200.0,9.706e-05,2]
[401867318,1768391440502,-556.0,9.706e-05,2]
[401867320,1768391440522,-1000000.0,9.707e-05,2]
[401867321,1768391440539,-972.98,9.8e-05,2]
[401867324,1768391440551,-268.0,9.805e-05,2]
[401867325,1768391440562,-245.46040198,9.806e-05,2]
[401867328,1768391440574,-1542.25831869,9.806e-05,2]
[401867330,1768391440587,-50000.0,9.806e-05,2]
[401867331,1768391440600,-677.5185881,9.806e-05,2]
[401867334,1768391440613,-5380.85647444,9.807e-05,2]
[401867336,1768391440623,-1000.0,9.807e-05,2]
[401867338,1768391440634,-641.72337868,9.807e-05,2]
[401867340,1768391440646,-151.0,0.0001,2]
[401867342,1768391440658,-151.0,0.0001,2]
[401867343,1768391440668,-151.0,0.0001,2]
[401867345,1768391440679,-151.0,0.0001,2]
[401867347,1768391440689,-151.0,0.0001,2]
[401867349,1768391440698,-151.0,0.0001,2]
[401867351,1768391440708,-151.0,0.0001,2]
[401867353,1768391440718,-151.0,0.0001,2]
[401867355,1768391440728,-151.0,0.0001,2]
[401867357,1768391440739,-151.0,0.0001,2]
[401867359,1768391440751,-151.0,0.0001,2]
[401867361,1768391440760,-278.5612449,0.0001,2]
[401867363,1768391440770,-151.53304833,0.0001,2]
[401867365,1768391440779,-300.0,0.00010003,2]
[401867367,1768391440799,-300.0,0.00010003,2]
[401867369,1768391440820,-300.0,0.00010003,2]
[401867371,1768391440843,-300.0,0.00010003,2]
[401867373,1768391440853,-300.0,0.00010003,2]
[401867375,1768391440864,-300.0,0.00010003,2]
[401867377,1768391440874,-300.0,0.00010003,2]
[401867379,1768391440886,-300.0,0.00010003,2]
[401867381,1768391440896,-300.0,0.00010003,2]
[401867383,1768391440907,-300.0,0.00010003,2]
[401867385,1768391440919,-300.0,0.00010003,2]
[401867387,1768391440930,-300.0,0.00010003,2]
[401867389,1768391440941,-300.0,0.00010003,2]
[401867391,1768391440953,-300.0,0.00010003,2]
[401867393,1768391440963,-300.0,0.00010003,2]
[401867395,1768391440974,-600.0,0.00010003,2]
[401867397,1768391440986,-420.0,0.00010676,2]
[401867399,1768391440997,-420.0,0.00010676,2]
[401867401,1768391441008,-1680.0,0.00010676,2]
[401867403,1768391441019,-500.0,0.0001073,2]
[401867405,1768391441030,-2212.64504451,0.0001083,2]
[401867407,1768391441041,-219.27312391,0.0001083,2]
[401867409,1768391441054,-500.0,0.0001083,2]
[401867411,1768391441066,-5380.85647441,0.00010847,2]
[401867413,1768391441078,-500.0,0.00010867,2]
[401867415,1768391441089,-999.0,0.00010959,2]
[401867417,1768391441099,-1500.0,0.00010959,2]
[401867420,1768391441113,-1500.0,0.00010959,2]
[401867422,1768391441124,-500.0,0.00011004,2]
[401867424,1768391441137,-720.0,0.00011004,2]
[401867426,1768391441148,-500.0,0.00011104,2]
[401867428,1768391441160,-500.0,0.00011141,2]
[401867430,1768391441170,-2157.71512042,0.00011258,2]
[401867431,1768391441182,-374.08615072,0.00011278,2]
[401867432,1768391441192,-500.0,0.00011378,2]
[401867433,1768391441203,-1500.0,0.00011546,2]
[401867434,1768391441216,-587.0,0.00011744,2]
[401867435,1768391441228,-587.0,0.00011744,2]
[401867436,1768391441241,-2351.0,0.00011744,2]
[401867437,1768391441251,-500.0,0.00011781,2]
[401867438,1768391441261,-799.47193396,0.00011806,2]
[401867439,1768391441271,-500.0,0.00011918,2]
[401867440,1768391441281,-5380.85647441,0.00011988,2]
[401867441,1768391441291,-500.0,0.00012055,2]
[401867442,1768391441302,-500.0,0.00012055,2]
[401867443,1768391441312,-500.0,0.00012055,2]
[401867444,1768391441322,-500.0,0.00012055,2]
[401867445,1768391441333,-500.0,0.00012055,2]
[401867446,1768391441343,-500.0,0.00012055,2]
[401867447,1768391441352,-500.0,0.00012055,2]
[401867448,1768391441362,-500.0,0.00012055,2]
[401867449,1768391441372,-500.0,0.00012055,2]
[401867450,1768391441382,-500.0,0.00012055,2]
[401867451,1768391441392,-500.0,0.00012055,2]
[401867452,1768391441402,-500.0,0.00012055,2]
[401867453,1768391441424,-500.0,0.00012055,2]
[401867455,1768391441443,-500.0,0.00012055,2]
[401867457,1768391441455,-500.0,0.00012055,2]
[401867459,1768391441469,-433.0,0.00012055,2]
[401867461,1768391441481,-864.0,0.00012104,2]
[401867463,1768391441493,-175.48644191,0.00012192,2]
[401867465,1768391441504,-500.88218581,0.00012192,2]
[401867466,1768391441514,-500.0,0.00012192,2]
[401867469,1768391441526,-500.0,0.00012192,2]
[401867471,1768391441539,-500.0,0.00012192,2]
[401867472,1768391441552,-500.0,0.00012192,2]
[401867474,1768391441563,-500.0,0.00012192,2]
[401867476,1768391441572,-500.0,0.00012192,2]
[401867478,1768391441582,-500.0,0.00012192,2]
[401867480,1768391441591,-500.0,0.00012192,2]
[401867482,1768391441601,-500.0,0.00012192,2]
[401867484,1768391441611,-500.0,0.00012192,2]
[401867486,1768391441620,-283.83301289,0.00012192,2]
[401867488,1768391441630,-500.0,0.00012192,2]
[401867490,1768391441640,-500.0,0.00012192,2]
[401867492,1768391441650,-500.0,0.00012192,2]
[401867494,1768391441659,-433.0,0.00012192,2]
[401867496,1768391441669,-5444.04,0.00012329,2]
[401867498,1768391441679,-4668.11,0.00012329,2]
[401867500,1768391441688,-3890.09,0.00012329,2]
[401867502,1768391441698,-3241.74,0.00012329,2]
[401867504,1768391441708,-2701.45,0.00012329,2]
[401867506,1768391441718,-2251.21,0.00012329,2]
[401867508,1768391441728,-1876.01,0.00012329,2]
[401867510,1768391441739,-1563.34,0.00012329,2]
[401867512,1768391441748,-1302.78,0.00012329,2]
[401867514,1768391441758,-1085.65,0.00012329,2]
[401867516,1768391441767,-904.71,0.00012329,2]
[401867518,1768391441777,-753.92,0.00012329,2]
[401867520,1768391441787,-628.27,0.00012329,2]
[401867523,1768391441797,-523.56,0.00012329,2]
[401867525,1768391441809,-436.3,0.00012329,2]
[401867527,1768391441820,-363.58,0.00012329,2]
[401867529,1768391441830,-302.99,0.00012329,2]
[401867531,1768391441841,-252.49,0.00012329,2]
[401867533,1768391441852,-210.41,0.00012329,2]
[401867535,1768391441862,-175.34,0.00012329,2]
[401867537,1768391441872,-876.71,0.00012329,2]
[401867539,1768391441883,-366.99002628,0.00012329,2]
[401867541,1768391441893,-500.0,0.00012329,2]
[401867543,1768391441903,-450.0,0.00012329,2]
[401867545,1768391441912,-500.0,0.00012329,2]
[401867547,1768391441922,-500.0,0.00012329,2]
[401867548,1768391441932,-407.49285757,0.00012329,2]
[401867550,1768391441942,-500.0,0.00012329,2]
[401867552,1768391441951,-500.0,0.00012329,2]
[401867554,1768391441961,-500.0,0.00012329,2]
[401867556,1768391441971,-200.0,0.00012329,2]
[401867559,1768391441981,-580.25340699,0.00012329,2]
[401867561,1768391441991,-421.56871784,0.00012329,2]
[401867563,1768391442001,-200.0,0.00012329,2]
[401867565,1768391442011,-433.0,0.00012329,2]
[401867567,1768391442021,-151.88,0.00012329,2]
[401867569,1768391442030,-1126.22646288,0.00012329,2]
[401867571,1768391442040,-1126.22646288,0.00012329,2]
[401867573,1768391442050,-1126.22646288,0.00012329,2]
[401867575,1768391442060,-1126.22646288,0.00012329,2]
[401867577,1768391442070,-1126.22646288,0.00012329,2]
[401867579,1768391442080,-1126.22646288,0.00012329,2]
[401867581,1768391442090,-1126.22646288,0.00012329,2]
[401867583,1768391442100,-1126.22646288,0.00012329,2]
[401867585,1768391442110,-1126.22646288,0.00012329,2]
[401867586,1768391442121,-1126.22646288,0.00012329,2]
[401867588,1768391442132,-1126.22646288,0.00012329,2]
[401867591,1768391442144,-1126.22646288,0.00012329,2]
[401867593,1768391442155,-1126.22646288,0.00012329,2]
[401867595,1768391442175,-1126.22646288,0.00012329,2]
[401867598,1768391442187,-1126.22646288,0.00012329,2]
[401867600,1768391442197,-1126.22646288,0.00012329,2]
[401867602,1768391442209,-1126.22646288,0.00012329,2]
[401867604,1768391442219,-1126.22646288,0.00012329,2]
[401867606,1768391442230,-1126.22646288,0.00012329,2]
[401867608,1768391442240,-1126.22646288,0.00012329,2]
[401867610,1768391442251,-1126.22646288,0.00012329,2]
[401867612,1768391442261,-1126.22646288,0.00012329,2]
[401867614,1768391442272,-1126.22646288,0.00012329,2]
[401867616,1768391442282,-1126.22646288,0.00012329,2]
[401867618,1768391442293,-1126.22646288,0.00012329,2]
[401867620,1768391442304,-1126.22646288,0.00012329,2]
[401867622,1768391442315,-1126.22646288,0.00012329,2]
[401867624,1768391442326,-1126.22646288,0.00012329,2]
[401867627,1768391442337,-1126.22646288,0.00012329,2]
[401867628,1768391442349,-1126.22646288,0.00012329,2]
[401867630,1768391442363,-1126.22646288,0.00012329,2]
[401867633,1768391442375,-1126.22646288,0.00012329,2]
[401867635,1768391442387,-1126.22646288,0.00012329,2]
[401867637,1768391442398,-1126.22646288,0.00012329,2]
[401867639,1768391442408,-1126.22646288,0.00012329,2]
[401867641,1768391442420,-1126.22646288,0.00012329,2]
[401867643,1768391442430,-1126.22646288,0.00012329,2]
[401867645,1768391442440,-1126.22646288,0.00012329,2]
[401867647,1768391442451,-1126.22646288,0.00012329,2]
[401867649,1768391442461,-1126.22646288,0.00012329,2]
[401867651,1768391442472,-1126.22646288,0.00012329,2]
[401867653,1768391442483,-1126.22646288,0.00012329,2]
[401867655,1768391442494,-1126.22646288,0.00012329,2]
[401867657,1768391442505,-1126.22646288,0.00012329,2]
[401867659,1768391442516,-1126.22646288,0.00012329,2]
[401867661,1768391442526,-1126.22646288,0.00012329,2]
[401867663,1768391442536,-1126.22646288,0.00012329,2]
[401867665,1768391442547,-1126.22646288,0.00012329,2]
[401867667,1768391442558,-1126.22646288,0.00012329,2]
[401867669,1768391442568,-1126.22646288,0.00012329,2]
[401867671,1768391442579,-1126.22646288,0.00012329,2]
[401867673,1768391442589,-1126.22646288,0.00012329,2]
[401867675,1768391442600,-1126.22646288,0.00012329,2]
[401867677,1768391442610,-1126.22646288,0.00012329,2]
[401867679,1768391442621,-1126.22646288,0.00012329,2]
[401867681,1768391442631,-1126.22646288,0.00012329,2]
[401867683,1768391442643,-1126.22646288,0.00012329,2]
[401867685,1768391442655,-1126.22646288,0.00012329,2]
[401867688,1768391442666,-1126.22646288,0.00012329,2]
[401867690,1768391442678,-1126.22646288,0.00012329,2]
[401867692,1768391442689,-1126.22646288,0.00012329,2]
[401867694,1768391442700,-1126.22646288,0.00012329,2]
[401867696,1768391442711,-1126.22646288,0.00012329,2]
[401867698,1768391442721,-1126.22646288,0.00012329,2]
[401867700,1768391442733,-200.0,0.00012466,2]
[401867702,1768391442743,-602.19565449,0.00012466,2]
[401867704,1768391442753,-386.15760488,0.00012466,2]
[401867706,1768391442763,-500.0,0.00012466,2]
[401867708,1768391442773,-500.0,0.00012466,2]
[401867710,1768391442783,-290.44633049,0.00012466,2]
[401867711,1768391442793,-451.57208959,0.00012466,2]
[401867713,1768391442804,-500.0,0.00012466,2]
[401867715,1768391442819,-433.0,0.00012466,2]
[401867717,1768391442832,-500.0,0.00012603,2]
[401867719,1768391442842,-622.17092249,0.00012603,2]
[401867721,1768391442854,-500.0,0.00012603,2]
[401867723,1768391442864,-191.14675922,0.00012603,2]
[401867725,1768391442874,-433.0,0.00012603,2]
[401867727,1768391442886,-151.88,0.00012603,2]
[401867729,1768391442897,-500.0,0.0001274,2]
[401867731,1768391442908,-500.0,0.0001274,2]
[401867733,1768391442918,-250.0,0.0001274,2]
[401867735,1768391442928,-200.0,0.0001274,2]
[401867737,1768391442939,-151.23570132,0.0001274,2]
[401867739,1768391442949,-433.0,0.0001274,2]
[401867741,1768391442959,-180.3,0.00012848,2]
[401867743,1768391442970,-500.0,0.00012877,2]
[401867745,1768391442982,-433.0,0.00012877,2]
[401867747,1768391442992,-151.89,0.00012877,2]
[401867749,1768391443004,-22470.88731642,0.000129,2]
[401867751,1768391443014,-22470.88731642,0.000129,2]
[401867753,1768391443024,-823.0,0.00012918,2]
[401867755,1768391443036,-823.0,0.00012918,2]
[401867782,1768391443296,-3292.0,0.00012918,2]
[401867784,1768391443307,-250.0,0.00012949,2]
[401867786,1768391443316,-410.85131619,0.00013014,2]
[401867787,1768391443326,-433.0,0.00013014,2]
[401867789,1768391443336,-5380.85647441,0.00013128,2]
[401867791,1768391443346,-433.0,0.00013151,2]
[401867793,1768391443355,-167.63409657,0.00013273,2]
[401867795,1768391443365,-500.0,0.00013273,2]
[401867797,1768391443374,-500.0,0.00013273,2]
[401867799,1768391443384,-500.0,0.00013273,2]
[401867801,1768391443393,-501.85584568,0.00013273,2]
[401867803,1768391443402,-500.0,0.00013273,2]
[401867805,1768391443411,-500.0,0.00013273,2]
[401867807,1768391443421,-500.0,0.00013273,2]
[401867809,1768391443430,-500.0,0.00013273,2]
[401867811,1768391443439,-500.0,0.00013273,2]
[401867813,1768391443449,-500.0,0.00013273,2]
[401867815,1768391443459,-500.0,0.00013273,2]
[401867817,1768391443468,-500.0,0.00013273,2]
[401867819,1768391443480,-500.0,0.00013273,2]
[401867822,1768391443490,-533.74804854,0.00013273,2]
[401867823,1768391443500,-500.21355158,0.00013273,2]
[401867825,1768391443509,-500.0,0.00013273,2]
[401867827,1768391443519,-162.00337471,0.00013273,2]
[401867829,1768391443528,-500.18250774,0.00013273,2]
[401867831,1768391443538,-500.49098579,0.00013273,2]
[401867833,1768391443548,-500.0,0.00013273,2]
[401867835,1768391443557,-500.0,0.00013273,2]
[401867837,1768391443567,-500.0,0.00013273,2]
[401867839,1768391443577,-500.0,0.00013273,2]
[401867841,1768391443587,-500.0,0.00013273,2]
[401867843,1768391443596,-500.0,0.00013273,2]
[401867845,1768391443605,-500.0,0.00013273,2]
[401867847,1768391443616,-500.0,0.00013273,2]
[401867850,1768391443626,-643.72416534,0.00013273,2]
[401867852,1768391443636,-500.0,0.00013273,2]
[401867853,1768391443646,-500.0,0.00013273,2]
[401867854,1768391443655,-500.0,0.00013273,2]
[401867856,1768391443665,-500.0,0.00013273,2]
[401867858,1768391443675,-500.0,0.00013273,2]
[401867860,1768391443685,-161.32472846,0.00013273,2]
[401867862,1768391443695,-500.0,0.00013273,2]
[401867864,1768391443705,-316.29207451,0.00013273,2]
[401867866,1768391443715,-261.59054001,0.00013273,2]
[401867868,1768391443725,-500.0,0.00013273,2]
[401867870,1768391443735,-500.20354178,0.00013273,2]
[401867872,1768391443745,-500.0,0.00013273,2]
[401867874,1768391443755,-501.03457385,0.00013273,2]
[401867876,1768391443766,-500.0,0.00013273,2]
[401867878,1768391443777,-500.0,0.00013273,2]
[401867880,1768391443787,-500.0,0.00013273,2]
[401867882,1768391443797,-500.0,0.00013273,2]
[401867884,1768391443811,-500.0,0.00013273,2]
[401867886,1768391443820,-500.0,0.00013273,2]
[401867888,1768391443830,-500.0,0.00013273,2]
[401867890,1768391443841,-547.00656757,0.00013273,2]
[401867892,1768391443852,-500.0,0.00013273,2]